[Event "Titled Tuesday Blitz April 18 Early 2023"]
[White "Djordjevic, Vuk"]
[Black "Paravyan, David"]
[WhiteFideId "902098"]
[BlackFideId "4194985"]
[WhiteElo "2452"]
[BlackElo "2563"]
[Result "1/2-1/2"]
[Round "08"]
[TimeControl "180+2"]
[Date "2023.04.18"]
[WhiteClock "0:00:08"]
[BlackClock "0:00:19"]

1. d4 {[%clk 0:03:00]}  Nf6 {[%clk 0:02:59]} 2. Bg5 {[%clk 0:03:01]}  d5 {[%clk 0:02:59]} 3. Bxf6 {[%clk 0:03:01]}  gxf6 {[%clk 0:03:00]} 4. e3 {[%clk 0:03:01]}  c5 {[%clk 0:02:58]} 5. dxc5 {[%clk 0:03:02]}  e6 {[%clk 0:02:57]} 6. Nf3 {[%clk 0:03:02]}  Bxc5 {[%clk 0:02:57]} 7. c4 {[%clk 0:03:02]}  dxc4 {[%clk 0:02:55]} 8. Nbd2 {[%clk 0:03:02]}  O-O {[%clk 0:02:33]} 9. Bxc4 {[%clk 0:02:56]}  Nc6 {[%clk 0:02:33]} 10. O-O {[%clk 0:02:54]}  f5 {[%clk 0:02:33]} 11. a3 {[%clk 0:02:50]}  Be7 {[%clk 0:02:33]} 12. b4 {[%clk 0:02:49]}  Bf6 {[%clk 0:02:33]} 13. Rc1 {[%clk 0:02:47]}  a5 {[%clk 0:02:32]} 14. b5 {[%clk 0:02:46]}  Ne5 {[%clk 0:02:33]} 15. Be2 {[%clk 0:02:43]}  Bd7 {[%clk 0:02:32]} 16. Nd4 {[%clk 0:02:28]}  a4 {[%clk 0:02:22]} 17. f4 {[%clk 0:02:15]}  Ng6 {[%clk 0:02:22]} 18. N2f3 {[%clk 0:02:11]}  Qb6 {[%clk 0:02:21]} 19. Rc4 {[%clk 0:02:10]}  Rac8 {[%clk 0:02:17]} 20. Qxa4 {[%clk 0:02:06]}  Rxc4 {[%clk 0:02:15]} 21. Qxc4 {[%clk 0:01:59]}  Rc8 {[%clk 0:02:16]} 22. Qb4 {[%clk 0:01:28]}  Be7 {[%clk 0:02:13]} 23. Qb2 {[%clk 0:01:20]}  Qa5 {[%clk 0:02:13]} 24. Ra1 {[%clk 0:01:00]}  Qc3 {[%clk 0:02:14]} 25. Qxc3 {[%clk 0:00:51]}  Rxc3 {[%clk 0:02:15]} 26. a4 {[%clk 0:00:40]}  Rxe3 {[%clk 0:02:13]} 27. Kf2 {[%clk 0:00:41]}  Rc3 {[%clk 0:02:12]} 28. g3 {[%clk 0:00:40]}  Bc5 {[%clk 0:02:11]} 29. a5 {[%clk 0:00:38]}  e5 {[%clk 0:02:01]} 30. fxe5 {[%clk 0:00:34]}  Nxe5 {[%clk 0:02:00]} 31. Ke1 {[%clk 0:00:12]}  Nxf3+ {[%clk 0:01:54]} 32. Nxf3 {[%clk 0:00:12]}  Bxb5 {[%clk 0:01:53]} 33. Bxb5 {[%clk 0:00:12]}  Rxf3 {[%clk 0:01:53]} 34. a6 {[%clk 0:00:11]}  bxa6 {[%clk 0:01:52]} 35. Rxa6 {[%clk 0:00:11]}  f4 {[%clk 0:01:52]} 36. gxf4 {[%clk 0:00:07]}  Rxf4 {[%clk 0:01:51]} 37. Rh6 {[%clk 0:00:07]}  Kg7 {[%clk 0:01:46]} 38. Rh5 {[%clk 0:00:08]}  Bd4 {[%clk 0:01:44]} 39. Bd3 {[%clk 0:00:08]}  h6 {[%clk 0:01:44]} 40. h3 {[%clk 0:00:07]}  Bf6 {[%clk 0:01:43]} 41. Rf5 {[%clk 0:00:07]}  Rh4 {[%clk 0:01:42]} 42. Rf3 {[%clk 0:00:07]}  Bg5 {[%clk 0:01:43]} 43. Kf2 {[%clk 0:00:07]}  f6 {[%clk 0:01:43]} 44. Bf5 {[%clk 0:00:07]}  Kf8 {[%clk 0:01:40]} 45. Rd3 {[%clk 0:00:07]}  Rb4 {[%clk 0:01:39]} 46. Kg2 {[%clk 0:00:07]}  h5 {[%clk 0:01:35]} 47. Bg6 {[%clk 0:00:05]}  h4 {[%clk 0:01:34]} 48. Bf5 {[%clk 0:00:05]}  Rb5 {[%clk 0:01:33]} 49. Rf3 {[%clk 0:00:05]}  Ke7 {[%clk 0:01:33]} 50. Bg4 {[%clk 0:00:06]}  Rb4 {[%clk 0:01:32]} 51. Rf5 {[%clk 0:00:06]}  Bf4 {[%clk 0:01:32]} 52. Kf3 {[%clk 0:00:06]}  Be5 {[%clk 0:01:29]} 53. Rh5 {[%clk 0:00:06]}  Bg3 {[%clk 0:01:26]} 54. Rf5 {[%clk 0:00:05]}  Rb3+ {[%clk 0:01:24]} 55. Kg2 {[%clk 0:00:05]}  Rb2+ {[%clk 0:01:20]} 56. Kf3 {[%clk 0:00:05]}  Ra2 {[%clk 0:01:20]} 57. Rd5 {[%clk 0:00:05]}  Rf2+ {[%clk 0:01:20]} 58. Ke4 {[%clk 0:00:05]}  Bd6 {[%clk 0:01:16]} 59. Rh5 {[%clk 0:00:05]}  Rf4+ {[%clk 0:01:12]} 60. Ke3 {[%clk 0:00:04]}  Rb4 {[%clk 0:01:13]} 61. Rh7+ {[%clk 0:00:04]}  Kf8 {[%clk 0:01:13]} 62. Bf5 {[%clk 0:00:03]}  Bf4+ {[%clk 0:01:13]} 63. Kd3 {[%clk 0:00:03]}  Bg5 {[%clk 0:01:12]} 64. Bg4 {[%clk 0:00:03]}  Rf4 {[%clk 0:01:12]} 65. Rd7 {[%clk 0:00:03]}  f5 {[%clk 0:01:11]} 66. Bh5 {[%clk 0:00:04]}  Rf2 {[%clk 0:01:10]} 67. Kc3 {[%clk 0:00:03]}  Be7 {[%clk 0:01:05]} 68. Rd5 {[%clk 0:00:03]}  Kg7 {[%clk 0:01:04]} 69. Kd4 {[%clk 0:00:04]}  Bf6+ {[%clk 0:00:56]} 70. Ke3 {[%clk 0:00:04]}  Rh2 {[%clk 0:00:56]} 71. Kf4 {[%clk 0:00:04]}  Rxh3 {[%clk 0:00:56]} 72. Kxf5 {[%clk 0:00:04]}  Re3 {[%clk 0:00:55]} 73. Rd2 {[%clk 0:00:03]}  Be5 {[%clk 0:00:51]} 74. Bg4 {[%clk 0:00:03]}  h3 {[%clk 0:00:51]} 75. Bxh3 {[%clk 0:00:02]}  Bg3 {[%clk 0:00:43]} 76. Bg2 {[%clk 0:00:02]}  Re5+ {[%clk 0:00:42]} 77. Kg4 {[%clk 0:00:02]}  Be1 {[%clk 0:00:43]} 78. Rc2 {[%clk 0:00:02]}  Bb4 {[%clk 0:00:41]} 79. Kf3 {[%clk 0:00:03]}  Bc5 {[%clk 0:00:40]} 80. Re2 {[%clk 0:00:04]}  Rg5 {[%clk 0:00:38]} 81. Ke4 {[%clk 0:00:04]}  Kf6 {[%clk 0:00:37]} 82. Kd3 {[%clk 0:00:05]}  Bd6 {[%clk 0:00:35]} 83. Be4 {[%clk 0:00:06]}  Bf4 {[%clk 0:00:34]} 84. Rf2 {[%clk 0:00:06]}  Ke5 {[%clk 0:00:35]} 85. Re2 {[%clk 0:00:07]}  Rg3+ {[%clk 0:00:35]} 86. Kc4 {[%clk 0:00:07]}  Be3 {[%clk 0:00:35]} 87. Bd3 {[%clk 0:00:07]}  Rg4+ {[%clk 0:00:34]} 88. Kc3 {[%clk 0:00:07]}  Kf4 {[%clk 0:00:32]} 89. Ra2 {[%clk 0:00:07]}  Rg7 {[%clk 0:00:32]} 90. Ra4+ {[%clk 0:00:07]}  Kf3 {[%clk 0:00:33]} 91. Be4+ {[%clk 0:00:07]}  Kg3 {[%clk 0:00:33]} 92. Kd3 {[%clk 0:00:07]}  Bf2 {[%clk 0:00:32]} 93. Ra5 {[%clk 0:00:07]}  Rd7+ {[%clk 0:00:31]} 94. Rd5 {[%clk 0:00:08]}  Rf7 {[%clk 0:00:29]} 95. Rf5 {[%clk 0:00:09]}  Rd7+ {[%clk 0:00:29]} 96. Rd5 {[%clk 0:00:09]}  Ra7 {[%clk 0:00:29]} 97. Rg5+ {[%clk 0:00:09]}  Kh4 {[%clk 0:00:29]} 98. Rg2 {[%clk 0:00:09]}  Ra3+ {[%clk 0:00:28]} 99. Kc4 {[%clk 0:00:09]}  Bg3 {[%clk 0:00:27]} 100. Kd5 {[%clk 0:00:09]}  Kg5 {[%clk 0:00:27]} 101. Re2 {[%clk 0:00:08]}  Kf4 {[%clk 0:00:27]} 102. Bc2 {[%clk 0:00:08]}  Ra5+ {[%clk 0:00:27]} 103. Kc4 {[%clk 0:00:08]}  Ra7 {[%clk 0:00:27]} 104. Bd3 {[%clk 0:00:07]}  Rc7+ {[%clk 0:00:27]} 105. Kb3 {[%clk 0:00:08]}  Kf3 {[%clk 0:00:28]} 106. Re6 {[%clk 0:00:08]}  Rc5 {[%clk 0:00:27]} 107. Bc4 {[%clk 0:00:08]}  Bf2 {[%clk 0:00:22]} 108. Kb4 {[%clk 0:00:08]}  Rf5 {[%clk 0:00:22]} 109. Kc3 {[%clk 0:00:08]}  Rf4 {[%clk 0:00:20]} 110. Bd5+ {[%clk 0:00:07]}  Kg3 {[%clk 0:00:20]} 111. Rg6+ {[%clk 0:00:07]}  Kh4 {[%clk 0:00:20]} 112. Be6 {[%clk 0:00:07]}  Bc5 {[%clk 0:00:18]} 113. Rg4+ {[%clk 0:00:07]}  Rxg4 {[%clk 0:00:19]} 114. Bxg4 {[%clk 0:00:08]} 1/2-1/2


[Site "https://www.chess.com"]

[Event "Titled Tuesday Blitz April 18 Early 2023"]
[White "Amilal Munkhdalai"]
[Black "Daneshvar, Bardiya"]
[WhiteFideId "4903250"]
[BlackFideId "12576468"]
[WhiteElo "2293"]
[BlackElo "2468"]
[Result "0-1"]
[Round "08"]
[TimeControl "180+2"]
[Date "2023.04.18"]
[WhiteClock "0:00:04"]
[BlackClock "0:01:05"]

1. e4 {[%clk 0:03:00]}  d6 {[%clk 0:02:30]} 2. d4 {[%clk 0:03:00]}  Nf6 {[%clk 0:02:31]} 3. Nc3 {[%clk 0:03:00]}  e5 {[%clk 0:02:31]} 4. Nf3 {[%clk 0:02:59]}  exd4 {[%clk 0:02:31]} 5. Nxd4 {[%clk 0:02:58]}  Nc6 {[%clk 0:02:31]} 6. Nxc6 {[%clk 0:02:58]}  bxc6 {[%clk 0:02:29]} 7. Bd3 {[%clk 0:02:58]}  g6 {[%clk 0:02:27]} 8. Qe2 {[%clk 0:02:54]}  Nd7 {[%clk 0:02:25]} 9. O-O {[%clk 0:02:50]}  Bg7 {[%clk 0:02:26]} 10. Bd2 {[%clk 0:02:50]}  O-O {[%clk 0:02:26]} 11. Nd1 {[%clk 0:02:50]}  a5 {[%clk 0:02:24]} 12. Bc3 {[%clk 0:02:50]}  a4 {[%clk 0:02:23]} 13. Bxg7 {[%clk 0:02:47]}  Kxg7 {[%clk 0:02:24]} 14. a3 {[%clk 0:02:47]}  Qf6 {[%clk 0:02:23]} 15. Qd2 {[%clk 0:02:44]}  Nc5 {[%clk 0:02:22]} 16. Re1 {[%clk 0:02:41]}  Ne6 {[%clk 0:02:18]} 17. Qc3 {[%clk 0:02:38]}  Qxc3 {[%clk 0:02:13]} 18. Nxc3 {[%clk 0:02:36]}  Kf6 {[%clk 0:02:13]} 19. g3 {[%clk 0:02:22]}  Nd4 {[%clk 0:02:12]} 20. Kg2 {[%clk 0:02:22]}  Be6 {[%clk 0:02:10]} 21. f4 {[%clk 0:02:21]}  Rfb8 {[%clk 0:02:09]} 22. Rab1 {[%clk 0:02:21]}  Rb7 {[%clk 0:02:07]} 23. e5+ {[%clk 0:02:20]}  Ke7 {[%clk 0:02:07]} 24. Kf2 {[%clk 0:02:05]}  Ra5 {[%clk 0:02:05]} 25. exd6+ {[%clk 0:01:58]}  cxd6 {[%clk 0:02:04]} 26. Re4 {[%clk 0:01:45]}  c5 {[%clk 0:02:03]} 27. Ree1 {[%clk 0:01:03]}  Kd8 {[%clk 0:01:54]} 28. Be4 {[%clk 0:00:57]}  Rb8 {[%clk 0:01:54]} 29. Ke3 {[%clk 0:00:46]}  d5 {[%clk 0:01:50]} 30. Bd3 {[%clk 0:00:41]}  Nc6 {[%clk 0:01:45]} 31. Kd2 {[%clk 0:00:37]}  Kc7 {[%clk 0:01:42]} 32. Bf1 {[%clk 0:00:24]}  c4 {[%clk 0:01:37]} 33. Bg2 {[%clk 0:00:20]}  Kd6 {[%clk 0:01:31]} 34. Ne2 {[%clk 0:00:14]}  Rab5 {[%clk 0:01:28]} 35. Kc1 {[%clk 0:00:14]}  Kc5 {[%clk 0:01:24]} 36. Nc3 {[%clk 0:00:14]}  Ra5 {[%clk 0:01:24]} 37. Rd1 {[%clk 0:00:14]}  Ne7 {[%clk 0:01:20]} 38. Ne2 {[%clk 0:00:14]}  Nf5 {[%clk 0:01:19]} 39. Rd2 {[%clk 0:00:08]}  h5 {[%clk 0:01:13]} 40. Bh3 {[%clk 0:00:08]}  Ng7 {[%clk 0:01:11]} 41. Bxe6 {[%clk 0:00:07]}  Nxe6 {[%clk 0:01:12]} 42. Nc3 {[%clk 0:00:07]}  d4 {[%clk 0:01:10]} 43. Ne4+ {[%clk 0:00:08]}  Kd5 {[%clk 0:01:09]} 44. Nf6+ {[%clk 0:00:08]}  Kc6 {[%clk 0:01:10]} 45. Ne4 {[%clk 0:00:08]}  Rab5 {[%clk 0:01:10]} 46. Nf6 {[%clk 0:00:05]}  c3 {[%clk 0:01:09]} 47. Rd3 {[%clk 0:00:04]}  Rxb2 {[%clk 0:01:08]} 48. Ra1 {[%clk 0:00:01]}  Rd8 {[%clk 0:01:05]} 49. Ne4 {[%clk 0:00:02]}  Nc5 {[%clk 0:01:03]} 50. Nxc5 {[%clk 0:00:01]}  Kxc5 {[%clk 0:01:04]} 51. Rb1 {[%clk 0:00:02]}  Rxb1+ {[%clk 0:01:03]} 52. Kxb1 {[%clk 0:00:03]}  Re8 {[%clk 0:01:04]} 53. Rd1 {[%clk 0:00:02]}  Re2 {[%clk 0:01:04]} 54. Kc1 {[%clk 0:00:03]}  Kc4 {[%clk 0:01:04]} 55. Re1 {[%clk 0:00:04]}  Rxe1# {[%clk 0:01:05]} 0-1


[Site "https://www.chess.com"]

[Event "Titled Tuesday Blitz April 18 Early 2023"]
[White "Gubajdullin, Alexei"]
[Black "Movahed, Sina"]
[WhiteFideId "4141202"]
[BlackFideId "42520835"]
[WhiteElo "2279"]
[BlackElo "2225"]
[Result "0-1"]
[Round "08"]
[TimeControl "180+2"]
[Date "2023.04.18"]
[WhiteClock "0:00:11"]
[BlackClock "0:00:18"]

1. c4 {[%clk 0:03:00]}  Nf6 {[%clk 0:02:59]} 2. Nf3 {[%clk 0:02:59]}  g6 {[%clk 0:02:59]} 3. b4 {[%clk 0:02:58]}  Bg7 {[%clk 0:02:54]} 4. Bb2 {[%clk 0:02:57]}  O-O {[%clk 0:02:55]} 5. e3 {[%clk 0:02:55]}  d6 {[%clk 0:02:52]} 6. Be2 {[%clk 0:02:55]}  e5 {[%clk 0:02:52]} 7. d3 {[%clk 0:02:55]}  Re8 {[%clk 0:02:38]} 8. O-O {[%clk 0:02:54]}  c6 {[%clk 0:02:38]} 9. Nc3 {[%clk 0:02:53]}  d5 {[%clk 0:02:37]} 10. cxd5 {[%clk 0:02:49]}  cxd5 {[%clk 0:02:34]} 11. Na4 {[%clk 0:02:46]}  d4 {[%clk 0:02:21]} 12. exd4 {[%clk 0:02:41]}  exd4 {[%clk 0:02:19]} 13. Bxd4 {[%clk 0:02:39]}  Nc6 {[%clk 0:02:18]} 14. Bc3 {[%clk 0:02:33]}  Qe7 {[%clk 0:02:08]} 15. Re1 {[%clk 0:02:29]}  Nxb4 {[%clk 0:02:08]} 16. Bf1 {[%clk 0:02:26]}  Qf8 {[%clk 0:02:06]} 17. Qb3 {[%clk 0:02:06]}  Rxe1 {[%clk 0:01:50]} 18. Rxe1 {[%clk 0:02:05]}  Nbd5 {[%clk 0:01:49]} 19. Bb2 {[%clk 0:01:55]}  b6 {[%clk 0:01:36]} 20. Ba3 {[%clk 0:01:49]}  Qd8 {[%clk 0:01:31]} 21. Ne5 {[%clk 0:01:46]}  Be6 {[%clk 0:01:22]} 22. Nc6 {[%clk 0:01:17]}  Qd7 {[%clk 0:00:51]} 23. Nd4 {[%clk 0:01:13]}  Nf4 {[%clk 0:00:48]} 24. Nxe6 {[%clk 0:01:10]}  Nxe6 {[%clk 0:00:49]} 25. Bb2 {[%clk 0:00:58]}  Nd5 {[%clk 0:00:35]} 26. Bxg7 {[%clk 0:00:51]}  Kxg7 {[%clk 0:00:36]} 27. Nc3 {[%clk 0:00:51]}  Nf6 {[%clk 0:00:33]} 28. Ne4 {[%clk 0:00:49]}  Nxe4 {[%clk 0:00:28]} 29. dxe4 {[%clk 0:00:48]}  Qd4 {[%clk 0:00:27]} 30. e5 {[%clk 0:00:44]}  Rc8 {[%clk 0:00:25]} 31. g3 {[%clk 0:00:39]}  Rc3 {[%clk 0:00:23]} 32. Qd1 {[%clk 0:00:35]}  Qxd1 {[%clk 0:00:20]} 33. Rxd1 {[%clk 0:00:35]}  Rc2 {[%clk 0:00:21]} 34. Rd7 {[%clk 0:00:27]}  Rc7 {[%clk 0:00:16]} 35. Rxc7 {[%clk 0:00:25]}  Nxc7 {[%clk 0:00:17]} 36. Bc4 {[%clk 0:00:25]}  b5 {[%clk 0:00:17]} 37. Bb3 {[%clk 0:00:25]}  a5 {[%clk 0:00:18]} 38. f4 {[%clk 0:00:25]}  a4 {[%clk 0:00:18]} 39. Bc2 {[%clk 0:00:23]}  Nd5 {[%clk 0:00:17]} 40. Kf2 {[%clk 0:00:20]}  Nc3 {[%clk 0:00:13]} 41. a3 {[%clk 0:00:20]}  b4 {[%clk 0:00:13]} 42. axb4 {[%clk 0:00:20]}  a3 {[%clk 0:00:14]} 43. Bb3 {[%clk 0:00:20]}  a2 {[%clk 0:00:14]} 44. Bxa2 {[%clk 0:00:20]}  Nxa2 {[%clk 0:00:15]} 45. b5 {[%clk 0:00:20]}  Kf8 {[%clk 0:00:13]} 46. Ke3 {[%clk 0:00:20]}  Nc3 {[%clk 0:00:13]} 47. b6 {[%clk 0:00:09]}  Nd5+ {[%clk 0:00:13]} 48. Kd4 {[%clk 0:00:10]}  Nxb6 {[%clk 0:00:13]} 49. Kc5 {[%clk 0:00:11]}  Nc8 {[%clk 0:00:13]} 50. g4 {[%clk 0:00:10]}  Ke7 {[%clk 0:00:13]} 51. f5 {[%clk 0:00:10]}  gxf5 {[%clk 0:00:12]} 52. gxf5 {[%clk 0:00:10]}  f6 {[%clk 0:00:13]} 53. Kd5 {[%clk 0:00:07]}  Nb6+ {[%clk 0:00:13]} 54. Ke4 {[%clk 0:00:07]}  fxe5 {[%clk 0:00:12]} 55. Kxe5 {[%clk 0:00:07]}  Nd7+ {[%clk 0:00:12]} 56. Kf4 {[%clk 0:00:06]}  Kf6 {[%clk 0:00:13]} 57. Kg4 {[%clk 0:00:07]}  Ne5+ {[%clk 0:00:10]} 58. Kh5 {[%clk 0:00:07]}  Nf7 {[%clk 0:00:11]} 59. h4 {[%clk 0:00:05]}  h6 {[%clk 0:00:08]} 60. Kg4 {[%clk 0:00:04]}  Nd6 {[%clk 0:00:08]} 61. Kh5 {[%clk 0:00:01]}  Nxf5 {[%clk 0:00:08]} 62. Kg4 {[%clk 0:00:02]}  Kg6 {[%clk 0:00:08]} 63. h5+ {[%clk 0:00:01]}  Kf6 {[%clk 0:00:09]} 64. Kf4 {[%clk 0:00:02]}  Ng7 {[%clk 0:00:09]} 65. Kg4 {[%clk 0:00:03]}  Ke5 {[%clk 0:00:09]} 66. Kh4 {[%clk 0:00:03]}  Kf4 {[%clk 0:00:09]} 67. Kh3 {[%clk 0:00:04]}  Nxh5 {[%clk 0:00:04]} 68. Kh4 {[%clk 0:00:04]}  Nf6 {[%clk 0:00:04]} 69. Kh3 {[%clk 0:00:05]}  Kg5 {[%clk 0:00:05]} 70. Kg3 {[%clk 0:00:05]}  h5 {[%clk 0:00:06]} 71. Kh3 {[%clk 0:00:05]}  h4 {[%clk 0:00:07]} 72. Kg2 {[%clk 0:00:05]}  Ng4 {[%clk 0:00:08]} 73. Kh3 {[%clk 0:00:06]}  Nh6 {[%clk 0:00:08]} 74. Kg2 {[%clk 0:00:06]}  Kg4 {[%clk 0:00:09]} 75. Kh2 {[%clk 0:00:06]}  Nf5 {[%clk 0:00:09]} 76. Kg2 {[%clk 0:00:06]}  h3+ {[%clk 0:00:10]} 77. Kh2 {[%clk 0:00:07]}  Kh4 {[%clk 0:00:09]} 78. Kg1 {[%clk 0:00:07]}  Kg3 {[%clk 0:00:10]} 79. Kh1 {[%clk 0:00:08]}  Nh6 {[%clk 0:00:11]} 80. Kg1 {[%clk 0:00:08]}  Ng4 {[%clk 0:00:12]} 81. Kh1 {[%clk 0:00:08]}  Nf2+ {[%clk 0:00:12]} 82. Kg1 {[%clk 0:00:09]}  h2+ {[%clk 0:00:13]} 83. Kf1 {[%clk 0:00:09]}  h1=Q+ {[%clk 0:00:14]} 84. Ke2 {[%clk 0:00:09]}  Qf3+ {[%clk 0:00:15]} 85. Kd2 {[%clk 0:00:09]}  Ne4+ {[%clk 0:00:15]} 86. Kc1 {[%clk 0:00:10]}  Qe2 {[%clk 0:00:15]} 87. Kb1 {[%clk 0:00:10]}  Qd2 {[%clk 0:00:16]} 88. Ka1 {[%clk 0:00:10]}  Kf3 {[%clk 0:00:16]} 89. Kb1 {[%clk 0:00:10]}  Nc3+ {[%clk 0:00:17]} 90. Ka1 {[%clk 0:00:11]}  Qc1# {[%clk 0:00:18]} 0-1


[Site "https://www.chess.com"]

[Event "Titled Tuesday Blitz April 18 Early 2023"]
[White "Rodchenkov, Sergey D."]
[Black "Costachi, Mihnea"]
[WhiteFideId "4168712"]
[BlackFideId "1217518"]
[WhiteElo "2277"]
[BlackElo "2456"]
[Result "0-1"]
[Round "08"]
[TimeControl "180+2"]
[Date "2023.04.18"]
[WhiteClock "0:00:04"]
[BlackClock "0:00:06"]

1. e4 {[%clk 0:03:00]}  e5 {[%clk 0:02:59]} 2. Nf3 {[%clk 0:03:00]}  Nc6 {[%clk 0:02:59]} 3. Bc4 {[%clk 0:03:01]}  Bc5 {[%clk 0:02:58]} 4. O-O {[%clk 0:03:01]}  d6 {[%clk 0:02:58]} 5. d3 {[%clk 0:03:01]}  Nf6 {[%clk 0:02:59]} 6. c3 {[%clk 0:03:01]}  h6 {[%clk 0:02:59]} 7. Nbd2 {[%clk 0:03:01]}  a6 {[%clk 0:03:00]} 8. Bb3 {[%clk 0:02:59]}  Ba7 {[%clk 0:03:00]} 9. Bc2 {[%clk 0:02:59]}  g5 {[%clk 0:02:55]} 10. Nc4 {[%clk 0:02:53]}  g4 {[%clk 0:02:54]} 11. Ne1 {[%clk 0:02:49]}  h5 {[%clk 0:02:51]} 12. Be3 {[%clk 0:02:44]}  Qe7 {[%clk 0:02:45]} 13. Bxa7 {[%clk 0:02:42]}  Nxa7 {[%clk 0:02:46]} 14. Ne3 {[%clk 0:02:39]}  Bd7 {[%clk 0:02:39]} 15. f4 {[%clk 0:02:36]}  exf4 {[%clk 0:02:33]} 16. Rxf4 {[%clk 0:02:35]}  O-O-O {[%clk 0:02:33]} 17. Qe2 {[%clk 0:02:31]}  Nh7 {[%clk 0:02:27]} 18. Qf2 {[%clk 0:02:25]}  Nc6 {[%clk 0:02:15]} 19. Rxf7 {[%clk 0:02:15]}  Qg5 {[%clk 0:02:15]} 20. d4 {[%clk 0:02:00]}  h4 {[%clk 0:02:11]} 21. Nd3 {[%clk 0:01:21]}  g3 {[%clk 0:02:07]} 22. Qf4 {[%clk 0:01:21]}  gxh2+ {[%clk 0:02:07]} 23. Kxh2 {[%clk 0:01:22]}  Qh5 {[%clk 0:02:07]} 24. Bd1 {[%clk 0:00:56]}  Qb5 {[%clk 0:01:37]} 25. Be2 {[%clk 0:00:38]}  h3 {[%clk 0:01:28]} 26. g3 {[%clk 0:00:34]}  Ng5 {[%clk 0:01:16]} 27. c4 {[%clk 0:00:25]}  Qa5 {[%clk 0:01:14]} 28. b4 {[%clk 0:00:22]}  Qa3 {[%clk 0:01:05]} 29. Qxg5 {[%clk 0:00:17]}  Nxd4 {[%clk 0:01:05]} 30. Rxd7 {[%clk 0:00:16]}  Rxd7 {[%clk 0:00:57]} 31. Qg4 {[%clk 0:00:08]}  Nxe2 {[%clk 0:00:44]} 32. Qxe2 {[%clk 0:00:08]}  Rf7 {[%clk 0:00:38]} 33. Nf5 {[%clk 0:00:04]}  Kb8 {[%clk 0:00:35]} 34. Rf1 {[%clk 0:00:04]}  Qc3 {[%clk 0:00:34]} 35. Nf4 {[%clk 0:00:03]}  Re8 {[%clk 0:00:33]} 36. Nd5 {[%clk 0:00:03]}  Qe5 {[%clk 0:00:31]} 37. Rf4 {[%clk 0:00:02]}  c6 {[%clk 0:00:21]} 38. Nde3 {[%clk 0:00:02]}  d5 {[%clk 0:00:22]} 39. Ng4 {[%clk 0:00:02]}  Qc3 {[%clk 0:00:16]} 40. cxd5 {[%clk 0:00:02]}  cxd5 {[%clk 0:00:17]} 41. Rf3 {[%clk 0:00:02]}  Qxb4 {[%clk 0:00:16]} 42. Rf4 {[%clk 0:00:02]}  Rxe4 {[%clk 0:00:12]} 43. Rxe4 {[%clk 0:00:02]}  dxe4 {[%clk 0:00:13]} 44. Nfe3 {[%clk 0:00:02]}  Rd7 {[%clk 0:00:10]} 45. Kxh3 {[%clk 0:00:01]}  Rd2 {[%clk 0:00:11]} 46. Qf1 {[%clk 0:00:01]}  Qe7 {[%clk 0:00:09]} 47. Qf4+ {[%clk 0:00:02]}  Ka7 {[%clk 0:00:09]} 48. Nh6 {[%clk 0:00:02]}  Qd7+ {[%clk 0:00:09]} 49. Nhf5 {[%clk 0:00:03]}  Qd3 {[%clk 0:00:10]} 50. g4 {[%clk 0:00:03]}  Re2 {[%clk 0:00:10]} 51. g5 {[%clk 0:00:03]}  Qb1 {[%clk 0:00:10]} 52. g6 {[%clk 0:00:03]}  Qh1+ {[%clk 0:00:11]} 53. Kg4 {[%clk 0:00:04]}  Qg1+ {[%clk 0:00:10]} 54. Ng3 {[%clk 0:00:04]}  Rxe3 {[%clk 0:00:09]} 55. g7 {[%clk 0:00:04]}  Rf3 {[%clk 0:00:08]} 56. Qxe4 {[%clk 0:00:04]}  Rxg3+ {[%clk 0:00:06]} 0-1


[Site "https://www.chess.com"]

[Event "Titled Tuesday Blitz April 18 Early 2023"]
[White "Arat, Ufuk Sezen"]
[Black "Samsonkin, Artiom"]
[WhiteFideId "6309089"]
[BlackFideId "13503111"]
[WhiteElo "2289"]
[BlackElo "2524"]
[Result "1-0"]
[Round "08"]
[TimeControl "180+2"]
[Date "2023.04.18"]
[WhiteClock "0:00:09"]
[BlackClock "0:00:04"]

1. e4 {[%clk 0:03:00]}  c5 {[%clk 0:02:58]} 2. Nf3 {[%clk 0:03:01]}  d6 {[%clk 0:02:58]} 3. d4 {[%clk 0:03:01]}  cxd4 {[%clk 0:02:59]} 4. Nxd4 {[%clk 0:02:59]}  Nf6 {[%clk 0:03:00]} 5. Nc3 {[%clk 0:03:00]}  g6 {[%clk 0:03:00]} 6. Be3 {[%clk 0:02:57]}  Bg7 {[%clk 0:03:00]} 7. f3 {[%clk 0:02:58]}  Nc6 {[%clk 0:02:59]} 8. Qd2 {[%clk 0:02:58]}  O-O {[%clk 0:02:58]} 9. Bc4 {[%clk 0:02:58]}  Nxd4 {[%clk 0:02:58]} 10. Bxd4 {[%clk 0:02:58]}  Be6 {[%clk 0:02:59]} 11. Bb3 {[%clk 0:02:56]}  Qa5 {[%clk 0:02:56]} 12. O-O {[%clk 0:02:56]}  b5 {[%clk 0:02:47]} 13. Rad1 {[%clk 0:02:56]}  b4 {[%clk 0:02:29]} 14. Ne2 {[%clk 0:02:31]}  Rac8 {[%clk 0:02:17]} 15. Nc1 {[%clk 0:02:29]}  Bxb3 {[%clk 0:02:08]} 16. cxb3 {[%clk 0:02:15]}  Rfd8 {[%clk 0:01:52]} 17. a3 {[%clk 0:02:08]}  e5 {[%clk 0:01:52]} 18. axb4 {[%clk 0:02:04]}  Qc7 {[%clk 0:01:43]} 19. Bf2 {[%clk 0:01:50]}  d5 {[%clk 0:01:41]} 20. exd5 {[%clk 0:01:46]}  Nxd5 {[%clk 0:01:23]} 21. Nd3 {[%clk 0:01:19]}  Nf4 {[%clk 0:00:56]} 22. Qe3 {[%clk 0:01:18]}  Qd7 {[%clk 0:00:29]} 23. Nc5 {[%clk 0:00:28]}  Qxd1 {[%clk 0:00:26]} 24. Rxd1 {[%clk 0:00:29]}  Rxd1+ {[%clk 0:00:26]} 25. Be1 {[%clk 0:00:30]}  Ne6 {[%clk 0:00:15]} 26. h4 {[%clk 0:00:15]}  Nd4 {[%clk 0:00:10]} 27. Kh2 {[%clk 0:00:13]}  Nc2 {[%clk 0:00:03]} 28. Qe2 {[%clk 0:00:11]}  Rxe1 {[%clk 0:00:04]} 29. Qxc2 {[%clk 0:00:11]}  Rd8 {[%clk 0:00:04]} 30. Nb7 {[%clk 0:00:09]}  Rdd1 {[%clk 0:00:04]} 31. Qc8+ {[%clk 0:00:09]}  Bf8 {[%clk 0:00:04]} 32. Nc5 {[%clk 0:00:09]}  Kg7 {[%clk 0:00:04]} 33. h5 {[%clk 0:00:08]}  Rh1+ {[%clk 0:00:03]} 34. Kg3 {[%clk 0:00:09]}  gxh5 {[%clk 0:00:04]} 35. Ne4 {[%clk 0:00:08]}  h4+ {[%clk 0:00:05]} 36. Kg4 {[%clk 0:00:08]}  h5+ {[%clk 0:00:04]} 37. Kxh5 {[%clk 0:00:08]}  h3 {[%clk 0:00:04]} 38. Qg4+ {[%clk 0:00:08]}  Kh8 {[%clk 0:00:04]} 39. gxh3 {[%clk 0:00:07]}  Rdg1 {[%clk 0:00:05]} 40. Qf5 {[%clk 0:00:07]}  Bg7 {[%clk 0:00:05]} 41. Ng5 {[%clk 0:00:07]}  Rxg5+ {[%clk 0:00:01]} 42. Kxg5 {[%clk 0:00:07]}  Rg1+ {[%clk 0:00:01]} 43. Kh4 {[%clk 0:00:07]}  f6 {[%clk 0:00:01]} 44. Qc8+ {[%clk 0:00:07]}  Kh7 {[%clk 0:00:02]} 45. Qf5+ {[%clk 0:00:08]}  Kg8 {[%clk 0:00:03]} 46. f4 {[%clk 0:00:09]}  Rf1 {[%clk 0:00:02]} 47. Qc8+ {[%clk 0:00:08]}  Kh7 {[%clk 0:00:03]} 48. fxe5 {[%clk 0:00:09]}  fxe5 {[%clk 0:00:03]} 49. Qc2+ {[%clk 0:00:10]}  Kh8 {[%clk 0:00:03]} 50. Kg3 {[%clk 0:00:08]}  Rf4 {[%clk 0:00:03]} 51. b5 {[%clk 0:00:08]}  Kg8 {[%clk 0:00:02]} 52. Qc8+ {[%clk 0:00:08]}  Kh7 {[%clk 0:00:03]} 53. Qb7 {[%clk 0:00:08]}  Rf6 {[%clk 0:00:02]} 54. Qxa7 {[%clk 0:00:09]}  e4 {[%clk 0:00:02]} 55. b6 {[%clk 0:00:09]}  Rf3+ {[%clk 0:00:02]} 56. Kg2 {[%clk 0:00:09]}  Rxb3 {[%clk 0:00:03]} 57. b7 {[%clk 0:00:09]}  Rxb2+ {[%clk 0:00:04]} 58. Kg3 {[%clk 0:00:10]}  Rb3+ {[%clk 0:00:04]} 59. Kf4 {[%clk 0:00:10]}  e3 {[%clk 0:00:04]} 60. b8=Q {[%clk 0:00:09]} 1-0


[Site "https://www.chess.com"]